[Event "Titled Tuesday Blitz February 14 Late 2023"]
[White "Bellissimo, Joseph F."]
[Black "Nakamura, Hikaru"]
[WhiteFideId "2609843"]
[BlackFideId "2016192"]
[WhiteElo "2203"]
[BlackElo "2775"]
[Result "0-1"]
[Round "01"]
[TimeControl "180+2"]
[Date "2023.02.14"]
[WhiteClock "0:00:17"]
[BlackClock "0:01:59"]

1. e4 {[%clk 0:02:58]}  g6 {[%clk 0:02:58]} 2. d4 {[%clk 0:02:55]}  Bg7 {[%clk 0:02:59]} 3. Nc3 {[%clk 0:02:54]}  a6 {[%clk 0:02:59]} 4. a4 {[%clk 0:02:52]}  b6 {[%clk 0:02:59]} 5. f4 {[%clk 0:02:52]}  c6 {[%clk 0:02:56]} 6. Be2 {[%clk 0:02:51]}  d5 {[%clk 0:02:56]} 7. e5 {[%clk 0:02:49]}  h5 {[%clk 0:02:56]} 8. Nf3 {[%clk 0:02:35]}  Bg4 {[%clk 0:02:56]} 9. Ng5 {[%clk 0:02:31]}  Bxe2 {[%clk 0:02:55]} 10. Nxe2 {[%clk 0:02:29]}  Nh6 {[%clk 0:02:46]} 11. Ng3 {[%clk 0:02:21]}  e6 {[%clk 0:02:43]} 12. h4 {[%clk 0:02:15]}  c5 {[%clk 0:02:42]} 13. c3 {[%clk 0:02:13]}  Nc6 {[%clk 0:02:42]} 14. O-O {[%clk 0:02:10]}  c4 {[%clk 0:02:31]} 15. b4 {[%clk 0:02:02]}  cxb3 {[%clk 0:02:32]} 16. Ba3 {[%clk 0:02:00]}  Na5 {[%clk 0:02:24]} 17. Qd3 {[%clk 0:01:52]}  Qd7 {[%clk 0:02:20]} 18. Rfb1 {[%clk 0:01:41]}  Bf8 {[%clk 0:02:18]} 19. Bb4 {[%clk 0:01:34]}  Nc4 {[%clk 0:02:13]} 20. Rxb3 {[%clk 0:01:30]}  a5 {[%clk 0:02:13]} 21. Bxf8 {[%clk 0:01:27]}  Kxf8 {[%clk 0:02:13]} 22. Rb5 {[%clk 0:01:13]}  Rc8 {[%clk 0:02:13]} 23. Rf1 {[%clk 0:01:10]}  Kg7 {[%clk 0:02:11]} 24. Qe2 {[%clk 0:00:56]}  Rc6 {[%clk 0:02:09]} 25. Nh1 {[%clk 0:00:32]}  Nf5 {[%clk 0:02:07]} 26. g3 {[%clk 0:00:24]}  Nce3 {[%clk 0:02:07]} 27. Rc1 {[%clk 0:00:21]}  Rhc8 {[%clk 0:02:06]} 28. Qd3 {[%clk 0:00:19]}  Qc7 {[%clk 0:02:01]} 29. Rb3 {[%clk 0:00:18]}  Rc4 {[%clk 0:02:01]} 30. Nf3 {[%clk 0:00:17]}  Rxa4 {[%clk 0:02:00]} 31. Rxb6 {[%clk 0:00:17]}  Qxb6 {[%clk 0:02:00]} 32. Kh2 {[%clk 0:00:17]}  Qb2+ {[%clk 0:01:59]} 33. Kh3 {[%clk 0:00:17]}  Qg2# {[%clk 0:01:59]} 0-1


[Site "https://www.chess.com"]

[Event "Titled Tuesday Blitz February 14 Late 2023"]
[White "Naroditsky, Daniel"]
[Black "Karas, Marek"]
[WhiteFideId "2026961"]
[BlackFideId "14928558"]
[WhiteElo "2618"]
[BlackElo "2227"]
[Result "1-0"]
[Round "01"]
[TimeControl "180+2"]
[Date "2023.02.14"]
[WhiteClock "0:01:00"]
[BlackClock "0:00:13"]

1. e4 {[%clk 0:03:00]}  e6 {[%clk 0:02:59]} 2. d4 {[%clk 0:02:59]}  d5 {[%clk 0:02:59]} 3. e5 {[%clk 0:02:59]}  c5 {[%clk 0:02:58]} 4. c3 {[%clk 0:03:00]}  Qb6 {[%clk 0:02:57]} 5. Nf3 {[%clk 0:02:58]}  Bd7 {[%clk 0:02:56]} 6. Bd3 {[%clk 0:02:43]}  Bb5 {[%clk 0:02:52]} 7. O-O {[%clk 0:02:43]}  Bxd3 {[%clk 0:02:45]} 8. Qxd3 {[%clk 0:02:44]}  Nc6 {[%clk 0:02:42]} 9. dxc5 {[%clk 0:02:42]}  Bxc5 {[%clk 0:02:40]} 10. Nbd2 {[%clk 0:02:33]}  a5 {[%clk 0:02:36]} 11. Nb3 {[%clk 0:02:26]}  a4 {[%clk 0:02:28]} 12. Nxc5 {[%clk 0:02:25]}  Qxc5 {[%clk 0:02:29]} 13. Be3 {[%clk 0:02:25]}  Qa5 {[%clk 0:02:28]} 14. Rab1 {[%clk 0:02:08]}  Nge7 {[%clk 0:02:24]} 15. b4 {[%clk 0:02:08]}  axb3 {[%clk 0:02:22]} 16. axb3 {[%clk 0:02:09]}  Qa6 {[%clk 0:02:04]} 17. Qd2 {[%clk 0:01:55]}  O-O {[%clk 0:01:57]} 18. Bc5 {[%clk 0:01:47]}  Rfd8 {[%clk 0:01:44]} 19. h4 {[%clk 0:01:43]}  h6 {[%clk 0:01:40]} 20. h5 {[%clk 0:01:39]}  b6 {[%clk 0:01:35]} 21. Be3 {[%clk 0:01:26]}  Nf5 {[%clk 0:01:23]} 22. Bf4 {[%clk 0:01:26]}  d4 {[%clk 0:01:16]} 23. c4 {[%clk 0:01:17]}  b5 {[%clk 0:00:57]} 24. g4 {[%clk 0:01:08]}  Nfe7 {[%clk 0:00:52]} 25. Bxh6 {[%clk 0:01:08]}  gxh6 {[%clk 0:00:20]} 26. Qxh6 {[%clk 0:01:09]}  Nxe5 {[%clk 0:00:14]} 27. Nxe5 {[%clk 0:01:06]}  Qd6 {[%clk 0:00:13]} 28. Qg5+ {[%clk 0:01:02]}  Kf8 {[%clk 0:00:13]} 29. Qf6 {[%clk 0:01:00]} 1-0


[Site "https://www.chess.com"]

[Event "Titled Tuesday Blitz February 14 Late 2023"]
[White "Hnydiuk, Aleksander"]
[Black "Andreikin, Dmitry"]
[WhiteFideId "1109057"]
[BlackFideId "4158814"]
[WhiteElo "2363"]
[BlackElo "2729"]
[Result "0-1"]
[Round "01"]
[TimeControl "180+2"]
[Date "2023.02.14"]
[WhiteClock "0:00:16"]
[BlackClock "0:02:20"]

1. e4 {[%clk 0:02:57]}  e6 {[%clk 0:02:58]} 2. d4 {[%clk 0:02:56]}  d5 {[%clk 0:02:59]} 3. e5 {[%clk 0:02:53]}  c5 {[%clk 0:02:58]} 4. c3 {[%clk 0:02:54]}  Qb6 {[%clk 0:02:58]} 5. Nf3 {[%clk 0:02:54]}  Bd7 {[%clk 0:02:58]} 6. Be2 {[%clk 0:02:45]}  cxd4 {[%clk 0:02:58]} 7. cxd4 {[%clk 0:02:44]}  Bb5 {[%clk 0:02:58]} 8. O-O {[%clk 0:02:43]}  Bxe2 {[%clk 0:02:58]} 9. Qxe2 {[%clk 0:02:44]}  Nc6 {[%clk 0:02:58]} 10. Nc3 {[%clk 0:02:38]}  Nge7 {[%clk 0:02:57]} 11. Be3 {[%clk 0:02:33]}  Nf5 {[%clk 0:02:57]} 12. Rac1 {[%clk 0:02:20]}  Be7 {[%clk 0:02:57]} 13. Na4 {[%clk 0:02:00]}  Qa5 {[%clk 0:02:56]} 14. Nc5 {[%clk 0:01:59]}  Bxc5 {[%clk 0:02:54]} 15. Rxc5 {[%clk 0:01:58]}  Qxa2 {[%clk 0:02:50]} 16. Qb5 {[%clk 0:01:47]}  O-O {[%clk 0:02:50]} 17. Qxb7 {[%clk 0:01:44]}  Nce7 {[%clk 0:02:49]} 18. Bg5 {[%clk 0:00:53]}  Rab8 {[%clk 0:02:36]} 19. Qd7 {[%clk 0:00:47]}  Ng6 {[%clk 0:02:34]} 20. g4 {[%clk 0:00:40]}  Nh6 {[%clk 0:02:32]} 21. h3 {[%clk 0:00:31]}  Qxb2 {[%clk 0:02:26]} 22. Rc7 {[%clk 0:00:29]}  Qe2 {[%clk 0:02:23]} 23. Nd2 {[%clk 0:00:16]}  Nxg4 {[%clk 0:02:20]} 0-1


[Site "https://www.chess.com"]

[Event "Titled Tuesday Blitz February 14 Late 2023"]
[White "Fiorito, Francisco"]
[Black "Fedoseev, Vladimir"]
[WhiteFideId "180165"]
[BlackFideId "24130737"]
[WhiteElo "2305"]
[BlackElo "2680"]
[Result "0-1"]
[Round "01"]
[TimeControl "180+2"]
[Date "2023.02.14"]
[WhiteClock "0:00:01"]
[BlackClock "0:01:02"]

1. d4 {[%clk 0:02:59]}  Nf6 {[%clk 0:02:56]} 2. Nc3 {[%clk 0:02:59]}  d5 {[%clk 0:02:55]} 3. Bf4 {[%clk 0:03:00]}  a6 {[%clk 0:02:55]} 4. e3 {[%clk 0:02:59]}  e6 {[%clk 0:02:55]} 5. g4 {[%clk 0:02:53]}  Bb4 {[%clk 0:02:51]} 6. Ne2 {[%clk 0:02:36]}  Nxg4 {[%clk 0:02:44]} 7. Rg1 {[%clk 0:02:35]}  e5 {[%clk 0:02:39]} 8. dxe5 {[%clk 0:02:30]}  Nc6 {[%clk 0:02:39]} 9. a3 {[%clk 0:02:29]}  Bxc3+ {[%clk 0:02:32]} 10. Nxc3 {[%clk 0:02:29]}  d4 {[%clk 0:02:32]} 11. exd4 {[%clk 0:01:52]}  Qxd4 {[%clk 0:02:20]} 12. Qxd4 {[%clk 0:01:32]}  Nxd4 {[%clk 0:02:21]} 13. O-O-O {[%clk 0:01:32]}  Nf3 {[%clk 0:02:20]} 14. Rg3 {[%clk 0:01:32]}  Nfxh2 {[%clk 0:02:19]} 15. f3 {[%clk 0:01:26]}  Nf2 {[%clk 0:02:12]} 16. Be2 {[%clk 0:00:48]}  Nxd1 {[%clk 0:02:12]} 17. Nxd1 {[%clk 0:00:48]}  Bf5 {[%clk 0:01:52]} 18. Rxg7 {[%clk 0:00:47]}  Bg6 {[%clk 0:01:51]} 19. e6 {[%clk 0:00:42]}  Ke7 {[%clk 0:01:41]} 20. exf7 {[%clk 0:00:35]}  Kf6 {[%clk 0:01:41]} 21. f8=Q+ {[%clk 0:00:35]}  Rhxf8 {[%clk 0:01:38]} 22. Rxc7 {[%clk 0:00:31]}  Rae8 {[%clk 0:01:38]} 23. Nc3 {[%clk 0:00:26]}  Nf1 {[%clk 0:01:28]} 24. Rxb7 {[%clk 0:00:16]}  Rf7 {[%clk 0:01:26]} 25. Rb6+ {[%clk 0:00:16]}  Kg7 {[%clk 0:01:26]} 26. Bg5 {[%clk 0:00:10]}  Ng3 {[%clk 0:01:21]} 27. Bc4 {[%clk 0:00:10]}  Rxf3 {[%clk 0:01:21]} 28. b4 {[%clk 0:00:06]}  Rc8 {[%clk 0:01:17]} 29. Rb7+ {[%clk 0:00:05]}  Bf7 {[%clk 0:01:17]} 30. Bxf7 {[%clk 0:00:02]}  Rxf7 {[%clk 0:01:16]} 31. Rxf7+ {[%clk 0:00:03]}  Kxf7 {[%clk 0:01:15]} 32. Nd5 {[%clk 0:00:04]}  h5 {[%clk 0:01:13]} 33. Nf4 {[%clk 0:00:04]}  Rc4 {[%clk 0:01:09]} 34. Kb2 {[%clk 0:00:04]}  Nf5 {[%clk 0:01:06]} 35. Kb3 {[%clk 0:00:04]}  Rc6 {[%clk 0:01:04]} 36. Nxh5 {[%clk 0:00:04]}  Kg6 {[%clk 0:01:03]} 37. Nf4+ {[%clk 0:00:01]}  Kxg5 {[%clk 0:01:03]} 38. Nd5 {[%clk 0:00:02]}  Nd4+ {[%clk 0:01:03]} 39. Ka4 {[%clk 0:00:02]}  Nxc2 {[%clk 0:01:03]} 40. Ne7 {[%clk 0:00:02]}  Rc3 {[%clk 0:01:02]} 41. Nd5 {[%clk 0:00:01]}  Rxa3# {[%clk 0:01:02]} 0-1


[Site "https://www.chess.com"]

[Event "Titled Tuesday Blitz February 14 Late 2023"]
[White "Zhang, Derek"]
[Black "Bortnyk, Olexandr"]
[WhiteFideId "2087871"]
[BlackFideId "14120828"]
[WhiteElo "2186"]
[BlackElo "2605"]
[Result "0-1"]
[Round "01"]
[TimeControl "180+2"]
[Date "2023.02.14"]
[WhiteClock "0:00:45"]
[BlackClock "0:01:46"]

1. Nf3 {[%clk 0:03:00]}  Nf6 {[%clk 0:02:57]} 2. c4 {[%clk 0:03:01]}  b6 {[%clk 0:02:57]} 3. Nc3 {[%clk 0:03:01]}  Bb7 {[%clk 0:02:58]} 4. e3 {[%clk 0:03:01]}  e6 {[%clk 0:02:55]} 5. b3 {[%clk 0:03:00]}  d5 {[%clk 0:02:56]} 6. Bb2 {[%clk 0:03:01]}  a6 {[%clk 0:02:55]} 7. d4 {[%clk 0:03:01]}  Bd6 {[%clk 0:02:54]} 8. Bd3 {[%clk 0:03:01]}  Nbd7 {[%clk 0:02:54]} 9. O-O {[%clk 0:03:02]}  O-O {[%clk 0:02:54]} 10. Rc1 {[%clk 0:03:01]}  Qe7 {[%clk 0:02:52]} 11. Na4 {[%clk 0:03:01]}  dxc4 {[%clk 0:02:43]} 12. bxc4 {[%clk 0:02:58]}  c5 {[%clk 0:02:43]} 13. Qe2 {[%clk 0:02:49]}  cxd4 {[%clk 0:02:35]} 14. exd4 {[%clk 0:02:47]}  Rac8 {[%clk 0:02:32]} 15. Rfd1 {[%clk 0:02:33]}  Bf4 {[%clk 0:02:24]} 16. Rc2 {[%clk 0:02:32]}  Rfd8 {[%clk 0:02:23]} 17. Ne5 {[%clk 0:02:19]}  Nxe5 {[%clk 0:02:18]} 18. dxe5 {[%clk 0:02:19]}  Nd7 {[%clk 0:02:19]} 19. g3 {[%clk 0:02:10]}  Bh6 {[%clk 0:02:17]} 20. f4 {[%clk 0:02:08]}  g6 {[%clk 0:02:15]} 21. Rcd2 {[%clk 0:02:00]}  Qb4 {[%clk 0:02:11]} 22. Nc3 {[%clk 0:01:53]}  Nc5 {[%clk 0:02:10]} 23. Bb1 {[%clk 0:01:44]}  Rxd2 {[%clk 0:02:06]} 24. Rxd2 {[%clk 0:01:44]}  Bf8 {[%clk 0:02:04]} 25. h4 {[%clk 0:01:32]}  Na4 {[%clk 0:02:04]} 26. Be4 {[%clk 0:00:46]}  Nxc3 {[%clk 0:01:46]} 27. Bxc3 {[%clk 0:00:46]}  Qxc3 {[%clk 0:01:46]} 28. Bxb7 {[%clk 0:00:45]}  Qxg3+ {[%clk 0:01:46]} 0-1


[Site "https://www.chess.com"]

[Event "Titled Tuesday Blitz February 14 Late 2023"]
[White "Svane, Rasmus"]
[Black "Kaplan, Avi Harrison"]
[WhiteFideId "4657101"]
[BlackFideId "30934559"]
[WhiteElo "2623"]
[BlackElo "2146"]
[Result "0-1"]
[Round "01"]
[TimeControl "180+2"]
[Date "2023.02.14"]
[WhiteClock "0:01:10"]
[BlackClock "0:00:14"]

1. Nf3 {[%clk 0:03:00]}  d6 {[%clk 0:02:50]} 2. d4 {[%clk 0:02:59]}  Nd7 {[%clk 0:02:50]} 3. e4 {[%clk 0:02:58]}  Ngf6 {[%clk 0:02:50]} 4. Nc3 {[%clk 0:02:59]}  e5 {[%clk 0:02:50]} 5. Bc4 {[%clk 0:02:59]}  Be7 {[%clk 0:02:50]} 6. a4 {[%clk 0:02:59]}  O-O {[%clk 0:02:50]} 7. O-O {[%clk 0:03:00]}  h6 {[%clk 0:02:49]} 8. Re1 {[%clk 0:02:58]}  c6 {[%clk 0:02:49]} 9. h3 {[%clk 0:02:57]}  Qc7 {[%clk 0:02:50]} 10. Be3 {[%clk 0:02:56]}  Re8 {[%clk 0:02:50]} 11. Nd2 {[%clk 0:02:53]}  Nf8 {[%clk 0:02:50]} 12. f4 {[%clk 0:02:53]}  a6 {[%clk 0:02:18]} 13. a5 {[%clk 0:02:51]}  Be6 {[%clk 0:02:17]} 14. Qf3 {[%clk 0:02:46]}  Rad8 {[%clk 0:02:15]} 15. dxe5 {[%clk 0:02:39]}  dxe5 {[%clk 0:01:53]} 16. Bb6 {[%clk 0:02:39]}  Qb8 {[%clk 0:01:52]} 17. Bxd8 {[%clk 0:02:37]}  Rxd8 {[%clk 0:01:52]} 18. fxe5 {[%clk 0:02:13]}  Rxd2 {[%clk 0:01:05]} 19. Bxe6 {[%clk 0:02:06]}  Nxe6 {[%clk 0:01:01]} 20. exf6 {[%clk 0:02:05]}  Bxf6 {[%clk 0:01:02]} 21. Rad1 {[%clk 0:01:39]}  Rxc2 {[%clk 0:01:01]} 22. e5 {[%clk 0:01:40]}  Bxe5 {[%clk 0:00:58]} 23. Qe4 {[%clk 0:01:40]}  Bh2+ {[%clk 0:00:33]} 24. Kh1 {[%clk 0:01:40]}  Rxb2 {[%clk 0:00:33]} 25. Rd7 {[%clk 0:01:35]}  Bg3 {[%clk 0:00:30]} 26. Rf1 {[%clk 0:01:33]}  Nc5 {[%clk 0:00:21]} 27. Qf5 {[%clk 0:01:24]}  Nxd7 {[%clk 0:00:21]} 28. Qxf7+ {[%clk 0:01:25]}  Kh8 {[%clk 0:00:21]} 29. Qxd7 {[%clk 0:01:26]}  Rf2 {[%clk 0:00:17]} 30. Re1 {[%clk 0:01:23]}  Qf8 {[%clk 0:00:17]} 31. Qd1 {[%clk 0:01:14]}  Rxg2 {[%clk 0:00:14]} 32. Re8 {[%clk 0:01:09]}  Rh2+ {[%clk 0:00:13]} 33. Kg1 {[%clk 0:01:10]}  Qxe8 {[%clk 0:00:14]} 0-1


[Site "https://www.chess.com"]

[Event "Titled Tuesday Blitz February 14 Late 2023"]
[White "Sjugirov, Sanan"]
[Black "Riff, Vincent"]
[WhiteFideId "4189302"]
[BlackFideId "617776"]
[WhiteElo "2712"]
[BlackElo "2383"]
[Result "1-0"]
[Round "01"]
[TimeControl "180+2"]
[Date "2023.02.14"]
[WhiteClock "0:00:22"]
[BlackClock "0:01:31"]

1. d4 {[%clk 0:03:00]}  Nf6 {[%clk 0:02:58]} 2. c4 {[%clk 0:03:01]}  c5 {[%clk 0:02:55]} 3. d5 {[%clk 0:03:00]}  e5 {[%clk 0:02:56]} 4. Nc3 {[%clk 0:03:00]}  d6 {[%clk 0:02:57]} 5. e4 {[%clk 0:03:01]}  Be7 {[%clk 0:02:57]} 6. Nf3 {[%clk 0:03:02]}  Nbd7 {[%clk 0:02:57]} 7. h3 {[%clk 0:03:01]}  Nf8 {[%clk 0:02:57]} 8. Bd3 {[%clk 0:03:00]}  Ng6 {[%clk 0:02:57]} 9. g3 {[%clk 0:03:00]}  h5 {[%clk 0:02:57]} 10. h4 {[%clk 0:02:58]}  Ng4 {[%clk 0:02:56]} 11. Qe2 {[%clk 0:02:55]}  a6 {[%clk 0:02:55]} 12. Bd2 {[%clk 0:02:51]}  Bd7 {[%clk 0:02:55]} 13. Ng5 {[%clk 0:02:49]}  Rb8 {[%clk 0:02:46]} 14. f3 {[%clk 0:02:45]}  Nf6 {[%clk 0:02:46]} 15. Kf1 {[%clk 0:02:38]}  b5 {[%clk 0:02:44]} 16. cxb5 {[%clk 0:02:37]}  axb5 {[%clk 0:02:45]} 17. Nxb5 {[%clk 0:02:35]}  O-O {[%clk 0:02:40]} 18. Kg2 {[%clk 0:02:33]}  Ne8 {[%clk 0:02:26]} 19. a4 {[%clk 0:02:33]}  Nc7 {[%clk 0:02:23]} 20. Ba5 {[%clk 0:02:27]}  Bxb5 {[%clk 0:02:22]} 21. Bxb5 {[%clk 0:02:19]}  Bxg5 {[%clk 0:02:21]} 22. Bxc7 {[%clk 0:02:03]}  Qxc7 {[%clk 0:02:18]} 23. hxg5 {[%clk 0:02:04]}  h4 {[%clk 0:02:18]} 24. Qe3 {[%clk 0:01:51]}  hxg3 {[%clk 0:02:19]} 25. Kxg3 {[%clk 0:01:49]}  Nf4 {[%clk 0:02:19]} 26. Qg1 {[%clk 0:00:58]}  Rxb5 {[%clk 0:02:16]} 27. Qh2 {[%clk 0:00:58]}  f5 {[%clk 0:02:05]} 28. axb5 {[%clk 0:00:52]}  Qe7 {[%clk 0:02:00]} 29. Qh7+ {[%clk 0:00:51]}  Kf7 {[%clk 0:02:00]} 30. Qxf5+ {[%clk 0:00:51]}  Kg8 {[%clk 0:01:59]} 31. Qh7+ {[%clk 0:00:48]}  Kf7 {[%clk 0:01:59]} 32. g6+ {[%clk 0:00:36]}  Nxg6 {[%clk 0:01:54]} 33. Qh5 {[%clk 0:00:36]}  Qf6 {[%clk 0:01:39]} 34. Ra7+ {[%clk 0:00:35]}  Ke8 {[%clk 0:01:40]} 35. Ra8+ {[%clk 0:00:33]}  Ke7 {[%clk 0:01:40]} 36. Rxf8 {[%clk 0:00:25]}  Kxf8 {[%clk 0:01:37]} 37. Qg4 {[%clk 0:00:23]}  Kg8 {[%clk 0:01:31]} 38. Qe6+ {[%clk 0:00:22]} 1-0


[Site "https://www.chess.com"]

[Event "Titled Tuesday Blitz February 14 Late 2023"]
[White "Gasparyan, David"]
[Black "Predke, Alexandr"]
[WhiteFideId "13311980"]
[BlackFideId "24107581"]
[WhiteElo "2142"]
[BlackElo "2685"]
[Result "0-1"]
[Round "01"]
[TimeControl "180+2"]
[Date "2023.02.14"]
[WhiteClock "0:00:01"]
[BlackClock "0:00:19"]

1. e4 {[%clk 0:03:00]}  c5 {[%clk 0:02:59]} 2. Nf3 {[%clk 0:02:58]}  e6 {[%clk 0:02:59]} 3. d4 {[%clk 0:02:57]}  cxd4 {[%clk 0:03:00]} 4. Nxd4 {[%clk 0:02:57]}  Nc6 {[%clk 0:03:00]} 5. Nc3 {[%clk 0:02:54]}  Qc7 {[%clk 0:03:00]} 6. Ndb5 {[%clk 0:02:45]}  Qb8 {[%clk 0:03:00]} 7. a4 {[%clk 0:02:45]}  Nf6 {[%clk 0:02:55]} 8. Bd3 {[%clk 0:02:41]}  a6 {[%clk 0:02:47]} 9. Na3 {[%clk 0:02:41]}  Bd6 {[%clk 0:02:48]} 10. Bg5 {[%clk 0:02:35]}  Ne5 {[%clk 0:02:32]} 11. Nc4 {[%clk 0:02:23]}  Nxc4 {[%clk 0:02:29]} 12. Bxc4 {[%clk 0:02:23]}  Be5 {[%clk 0:02:24]} 13. Qd3 {[%clk 0:01:59]}  O-O {[%clk 0:02:04]} 14. Ne2 {[%clk 0:01:42]}  b5 {[%clk 0:01:57]} 15. Bb3 {[%clk 0:01:31]}  Bb7 {[%clk 0:01:53]} 16. Bxf6 {[%clk 0:01:24]}  Bxf6 {[%clk 0:01:52]} 17. O-O {[%clk 0:01:08]}  Bc6 {[%clk 0:01:49]} 18. f4 {[%clk 0:01:00]}  Bxb2 {[%clk 0:01:44]} 19. Rab1 {[%clk 0:01:00]}  Ba3 {[%clk 0:01:41]} 20. Kh1 {[%clk 0:00:49]}  Bc5 {[%clk 0:01:38]} 21. f5 {[%clk 0:00:45]}  Qe5 {[%clk 0:01:36]} 22. Ng3 {[%clk 0:00:43]}  Kh8 {[%clk 0:01:33]} 23. Rbe1 {[%clk 0:00:33]}  bxa4 {[%clk 0:01:32]} 24. Bc4 {[%clk 0:00:34]}  a3 {[%clk 0:01:25]} 25. Nh5 {[%clk 0:00:33]}  g6 {[%clk 0:01:18]} 26. fxg6 {[%clk 0:00:32]}  fxg6 {[%clk 0:01:17]} 27. Ng3 {[%clk 0:00:30]}  Bf2 {[%clk 0:01:03]} 28. Re2 {[%clk 0:00:24]}  Bxg3 {[%clk 0:01:02]} 29. Re3 {[%clk 0:00:16]}  Bxh2 {[%clk 0:00:49]} 30. Rh3 {[%clk 0:00:13]}  Rxf1+ {[%clk 0:00:36]} 31. Qxf1 {[%clk 0:00:14]}  Bf4 {[%clk 0:00:35]} 32. Rf3 {[%clk 0:00:14]}  Rf8 {[%clk 0:00:31]} 33. Qb1 {[%clk 0:00:03]}  Bxe4 {[%clk 0:00:28]} 34. Rh3 {[%clk 0:00:03]}  Qg5 {[%clk 0:00:25]} 35. Bf1 {[%clk 0:00:01]}  Be5 {[%clk 0:00:19]} 36. Qb3 {[%clk 0:00:01]} 0-1


[Site "https://www.chess.com"]

[Event "Titled Tuesday Blitz February 14 Late 2023"]
[White "Gharibyan, Mamikon"]
[Black "Pein, Jonathan"]
[WhiteFideId "13308300"]
[BlackFideId "417092"]
[WhiteElo "2500"]
[BlackElo "2265"]
[Result "1/2-1/2"]
[Round "01"]
[TimeControl "180+2"]
[Date "2023.02.14"]
[WhiteClock "0:00:06"]
[BlackClock "0:00:16"]

1. e4 {[%clk 0:03:00]}  e5 {[%clk 0:02:58]} 2. Nf3 {[%clk 0:02:59]}  d6 {[%clk 0:02:59]} 3. d4 {[%clk 0:02:58]}  exd4 {[%clk 0:02:59]} 4. Nxd4 {[%clk 0:02:57]}  Nf6 {[%clk 0:03:00]} 5. Nc3 {[%clk 0:02:56]}  g6 {[%clk 0:03:00]} 6. Bg5 {[%clk 0:02:38]}  Bg7 {[%clk 0:03:00]} 7. Qd2 {[%clk 0:02:37]}  h6 {[%clk 0:03:01]} 8. Bf4 {[%clk 0:02:26]}  Nc6 {[%clk 0:03:01]} 9. Bb5 {[%clk 0:02:22]}  Bd7 {[%clk 0:03:02]} 10. Bxc6 {[%clk 0:02:22]}  bxc6 {[%clk 0:03:03]} 11. O-O {[%clk 0:02:21]}  g5 {[%clk 0:03:02]} 12. Bg3 {[%clk 0:02:19]}  Nh5 {[%clk 0:02:53]} 13. Rae1 {[%clk 0:02:07]}  O-O {[%clk 0:02:51]} 14. Nd1 {[%clk 0:02:02]}  c5 {[%clk 0:02:44]} 15. Nf5 {[%clk 0:01:53]}  Bxf5 {[%clk 0:02:45]} 16. exf5 {[%clk 0:01:54]}  Nxg3 {[%clk 0:02:45]} 17. hxg3 {[%clk 0:01:44]}  Qf6 {[%clk 0:02:45]} 18. Ne3 {[%clk 0:01:37]}  c6 {[%clk 0:02:08]} 19. c3 {[%clk 0:01:29]}  d5 {[%clk 0:02:05]} 20. Qc2 {[%clk 0:01:25]}  Rfd8 {[%clk 0:01:49]} 21. Ng4 {[%clk 0:01:21]}  Qd6 {[%clk 0:01:44]} 22. f6 {[%clk 0:01:21]}  Bf8 {[%clk 0:01:42]} 23. Qf5 {[%clk 0:01:18]}  d4 {[%clk 0:01:28]} 24. Re7 {[%clk 0:01:06]}  Qd5 {[%clk 0:00:43]} 25. Re5 {[%clk 0:00:58]}  Qd7 {[%clk 0:00:39]} 26. Qf3 {[%clk 0:00:54]}  d3 {[%clk 0:00:35]} 27. c4 {[%clk 0:00:50]}  d2 {[%clk 0:00:34]} 28. Rd1 {[%clk 0:00:50]}  Qd3 {[%clk 0:00:28]} 29. Qxd3 {[%clk 0:00:36]}  Rxd3 {[%clk 0:00:29]} 30. Re2 {[%clk 0:00:36]}  Rad8 {[%clk 0:00:29]} 31. Ne3 {[%clk 0:00:29]}  Kh7 {[%clk 0:00:30]} 32. Nf1 {[%clk 0:00:24]}  Kg6 {[%clk 0:00:30]} 33. Rdxd2 {[%clk 0:00:25]}  Kxf6 {[%clk 0:00:25]} 34. Rxd3 {[%clk 0:00:19]}  Rxd3 {[%clk 0:00:26]} 35. b3 {[%clk 0:00:18]}  Bd6 {[%clk 0:00:23]} 36. g4 {[%clk 0:00:18]}  Rd1 {[%clk 0:00:22]} 37. g3 {[%clk 0:00:17]}  Be5 {[%clk 0:00:20]} 38. Kg2 {[%clk 0:00:17]}  Bd4 {[%clk 0:00:18]} 39. Nh2 {[%clk 0:00:14]}  a5 {[%clk 0:00:17]} 40. Nf3 {[%clk 0:00:12]}  a4 {[%clk 0:00:17]} 41. Re8 {[%clk 0:00:09]}  Ra1 {[%clk 0:00:14]} 42. Rc8 {[%clk 0:00:04]}  Rxa2 {[%clk 0:00:12]} 43. Rxc6+ {[%clk 0:00:03]}  Kg7 {[%clk 0:00:13]} 44. Nxd4 {[%clk 0:00:03]}  cxd4 {[%clk 0:00:13]} 45. bxa4 {[%clk 0:00:04]}  Rxa4 {[%clk 0:00:14]} 46. c5 {[%clk 0:00:04]}  d3 {[%clk 0:00:14]} 47. Rd6 {[%clk 0:00:05]}  Rc4 {[%clk 0:00:14]} 48. Rxd3 {[%clk 0:00:04]}  Rxc5 {[%clk 0:00:14]} 49. Re3 {[%clk 0:00:04]}  Rc4 {[%clk 0:00:14]} 50. Kh3 {[%clk 0:00:04]}  Kg6 {[%clk 0:00:14]} 51. Re2 {[%clk 0:00:04]}  Rc6 {[%clk 0:00:15]} 52. Kg2 {[%clk 0:00:04]}  Rf6 {[%clk 0:00:15]} 53. f3 {[%clk 0:00:05]}  Rc6 {[%clk 0:00:15]} 54. Kf2 {[%clk 0:00:05]}  Rc3 {[%clk 0:00:16]} 55. Kg2 {[%clk 0:00:06]}  Rd3 {[%clk 0:00:16]} 56. Kf2 {[%clk 0:00:06]}  Rc3 {[%clk 0:00:16]} 57. Kg2 {[%clk 0:00:06]} 1/2-1/2


[Site "https://www.chess.com"]